bitfinex/quotes_SOLUSD_20250714
["timestamp","ask_amount","ask_price","bid_price","bid_amount"]
[1752504337972,0.85178925,166.27,166.23,15.48529468]
[1752504338476,0.85178925,166.27,166.24,15.48529468]
[1752504338771,0.85178925,166.27,166.26,15.48529468]
[1752504338772,0.1,166.27,166.26,15.48529468]
[1752504340055,0.1,166.27,166.23,7.8442]
[1752504340253,0.1,166.27,166.26,15.48529468]
[1752504340459,0.1,166.27,166.25,15.48529468]
[1752504341660,0.1,166.27,166.26,15.48529468]
[1752504342067,0.1,166.27,166.25,15.48529468]
[1752504343183,0.1,166.27,166.24,15.48529468]
[1752504344055,16.23712915,166.26,166.21,15.48529468]
[1752504344275,15.48529468,166.25,166.2,15.48529468]
[1752504344462,0.75192492,166.24,166.19,21.79949468]
[1752504344664,0.75192492,166.24,166.19,15.48529468]
[1752504344869,0.75192492,166.24,166.2,15.48529468]
[1752504345465,0.75187969,166.25,166.21,15.48529468]
[1752504345673,0.75183447,166.26,166.21,15.48529468]
[1752504346069,0.75183447,166.26,166.22,15.48529468]
[1752504346279,16.23712915,166.26,166.18,1.5778]
[1752504346483,15.48529468,166.25,166.2,15.48529468]
[1752504346660,0.75192492,166.24,166.18,1.5778]
[1752504346859,0.75192492,166.24,166.18,15.48529468]
[1752504346860,16.2372196,166.24,166.18,15.48529468]
[1752504347966,16.2372196,166.24,166.17,32.6]
[1752504348167,16.2372196,166.24,166.19,15.48529468]
[1752504348700,22.25267098,166.24,166.17,32.6]
[1752504348977,22.25267098,166.24,166.19,15.48529468]
[1752504349482,0.75192492,166.24,166.19,15.48529468]
[1752504349683,6.76734896,166.24,166.19,15.48529468]
[1752504349984,22.25264364,166.24,166.19,15.48529468]
[1752504350166,6.76734896,166.24,166.19,15.48529468]
[1752504350375,0.75192492,166.24,166.2,15.48529468]
[1752504350583,0.75187969,166.25,166.2,15.48529468]
[1752504350766,0.1,166.27,166.23,15.48529468]
[1752504350965,0.85178925,166.27,166.24,15.48529468]
[1752504351165,0.85178925,166.27,166.25,15.48529468]
[1752504351359,0.85178925,166.27,166.24,15.48529468]
[1752504351559,0.1,166.27,166.25,15.48529468]
[1752504351781,0.1,166.27,166.26,15.48529468]
[1752504351957,0.1,166.27,166.25,15.48529468]
[1752504352583,0.1,166.27,166.19,0.33419528]
[1752504352783,0.1,166.27,166.25,15.48529468]
[1752504352983,0.1,166.27,166.24,15.48529468]
[1752504353190,0.1,166.27,166.23,15.48529468]
[1752504353688,0.85178925,166.27,166.23,15.48529468]
[1752504353983,15.48529468,166.26,166.18,75.38468397]
[1752504354174,0.75187969,166.25,166.21,15.48529468]
[1752504354379,16.23717437,166.25,166.2,15.48529468]
[1752504354984,16.33708393,166.27,166.22,15.48529468]
[1752504355484,0.85178925,166.27,166.23,15.48529468]
[1752504355717,0.1,166.27,166.25,15.48529468]
[1752504355872,0.85178925,166.27,166.23,15.48529468]
[1752504356192,0.1,166.27,166.24,15.48529468]
[1752504356373,0.1,166.27,166.19,17.11891444]
[1752504356687,0.75183447,166.26,166.19,16.78468397]
[1752504356866,15.48529468,166.24,166.17,16.78468397]
[1752504357193,10.88018195,166.23,166.16,6.5472]
[1752504357405,0.75197016,166.23,166.19,10.12821179]
[1752504357576,0.75192492,166.24,166.21,10.12821179]
[1752504357897,10.88004626,166.26,166.21,10.12821179]
[1752504358089,10.12821179,166.23,166.18,10.12821179]
[1752504358276,0.7520154,166.22,166.17,10.12821179]
[1752504359385,0.7520154,166.22,166.18,10.12821179]
[1752504359801,10.12821179,166.2,166.13,32.58]
[1752504360001,0.75215115,166.19,166.13,32.58]
[1752504360310,0.75206064,166.21,166.16,10.12821179]
[1752504360490,0.75206064,166.21,166.18,10.12821179]
[1752504360807,0.75192492,166.24,166.2,10.12821179]
[1752504361104,33.33187969,166.25,166.21,10.12821179]
[1752504361274,0.85178925,166.27,166.24,10.12821179]
[1752504361474,0.1,166.27,166.22,16.78468397]
[1752504361683,0.1,166.27,166.26,10.12821179]
[1752504362089,0.1,166.27,166.26,26.91289576]
[1752504362275,0.1,166.27,166.26,116.51289576]
[1752504362896,0.1,166.27,166.26,89.6]
[1752504363233,0.1,166.27,166.26,105.06481575]
[1752504363993,0.1,166.27,166.25,15.46481575]
[1752504364602,0.1,166.27,166.22,26.0]
[1752504364789,0.85178925,166.27,166.23,15.46481575]
[1752504365175,16.316605,166.27,166.22,15.46481575]
[1752504365396,0.85178925,166.27,166.23,15.46481575]
[1752504365803,0.85178925,166.27,166.21,6.6126]
[1752504365999,0.85178925,166.27,166.23,15.46481575]
[1752504366312,0.85178925,166.27,166.25,0.03]
[1752504367906,0.1,166.27,166.25,0.03]
[1752504368113,0.1,166.27,166.25,15.49481575]
[1752504368614,0.1,166.27,166.26,15.46481575]
[1752504368989,0.1,166.27,166.25,0.03]
[1752504369192,0.85178925,166.27,166.25,0.03]
[1752504369388,0.1,166.27,166.25,15.49481575]
[1752504370114,0.1,166.27,166.26,15.46481575]
[1752504371989,0.1,166.27,166.25,0.03]
[1752504373596,0.1,166.27,166.25,15.49481575]
[1752504373804,0.1,166.27,166.25,0.03]
[1752504375795,0.1,166.27,166.25,15.49481575]
[1752504376204,0.1,166.27,166.25,0.03]
[1752504376404,0.85178925,166.27,166.26,4.48972697]
[1752504377013,0.1,166.27,166.26,4.48972697]
[1752504377201,0.1,166.27,166.26,19.95454272]
[1752504379001,0.1,166.27,166.26,4.48972697]
[1752504379814,6.11431406,166.27,166.26,4.48972697]
[1752504380526,0.1,166.27,166.26,4.48972697]
[1752504380739,21.57912981,166.27,166.26,4.48972697]
[1752504381311,6.11431406,166.27,166.26,4.48972697]
[1752504381510,21.57912981,166.27,166.26,4.48972697]
[1752504382026,21.57912981,166.27,166.25,0.03]
[1752504382227,21.57912981,166.27,166.26,4.49016906]
[1752504382616,21.57912981,166.27,166.26,4.4901459]
[1752504382806,0.1,166.27,166.26,4.4901459]
[1752504383429,6.11431406,166.27,166.26,4.4901459]
[1752504384139,0.1,166.27,166.26,4.4901459]
[1752504386714,0.85178925,166.27,166.26,4.4901459]
[1752504387860,0.1,166.27,166.26,14.61104502]
[1752504388151,0.1,166.27,166.26,32.99972899]
[1752504388366,0.1,166.28,166.26,129.06072899]
[1752504388643,0.1,166.28,166.27,64.28965796]
[1752504388818,0.06,166.31,166.28,16.78468397]
[1752504389014,0.06,166.31,166.3,16.78468397]
[1752504389215,0.06,166.31,166.3,31.39572899]
[1752504390523,0.06,166.31,166.28,89.6]
[1752504390817,0.06,166.31,166.3,10.12089912]
[1752504391039,0.06,166.31,166.3,4.48325441]
[1752504391230,0.06,166.31,166.3,4.48376732]
[1752504391718,10.93250756,166.31,166.3,4.48376732]
[1752504392042,16.94537509,166.31,166.3,4.48376732]
[1752504393347,0.06,166.31,166.3,4.48376732]
[1752504395325,0.06,166.31,166.3,14.60466644]
[1752504396539,0.06,166.31,166.3,4.48376732]
[1752504398350,10.18089912,166.31,166.3,4.48376732]
[1752504399240,10.18089912,166.31,166.25,0.03]
[1752504399548,10.12089912,166.29,166.26,4.484009]
[1752504399757,10.12089912,166.29,166.27,4.484009]
[1752504400049,10.12089912,166.3,166.28,4.484009]
[1752504400248,16.13412822,166.3,166.29,4.484009]
[1752504401434,33.67046582,166.3,166.29,4.484009]
[1752504402050,48.70353858,166.3,166.25,0.03]
[1752504402358,10.12089912,166.26,166.25,0.03]
[1752504402539,16.13557492,166.26,166.25,4.51651256]
[1752504403937,16.13528297,166.27,166.25,4.51651256]
[1752504404136,0.75183447,166.26,166.25,0.03]
[1752504404338,0.75183447,166.26,166.25,4.51848916]
[1752504404542,6.76651027,166.26,166.25,4.51848916]
[1752504405773,64.53327867,166.3,166.25,14.63938828]
[1752504405935,49.40583142,166.3,166.26,4.48848916]
[1752504406254,49.40583142,166.3,166.27,4.48848916]
[1752504406452,49.40583142,166.3,166.28,4.48848916]
[1752504406653,49.40583142,166.3,166.29,4.48848916]
[1752504406855,48.65417779,166.3,166.29,4.48848916]
[1752504408151,48.65417779,166.3,166.29,4.48847396]
[1752504408358,0.06,166.31,166.29,14.60937308]
[1752504408557,0.06,166.31,166.3,14.60937308]
[1752504408939,0.06,166.31,166.3,31.72767961]
[1752504409766,0.06,166.32,166.31,22.92918397]
[1752504409940,0.06,166.34,166.31,37.53451791]
[1752504410143,0.06,166.34,166.33,26.90558309]
[1752504410339,0.06,166.34,166.33,31.39001791]
[1752504411859,0.06,166.38,166.33,31.39001791]
[1752504412064,0.06,166.38,166.37,10.12089912]
[1752504412260,0.06,166.38,166.37,14.60533394]
[1752504413365,0.06,166.38,166.37,4.48443482]
[1752504416560,0.06,166.38,166.37,14.60533394]
[1752504416763,0.06,166.38,166.37,14.58904762]
[1752504417147,0.06,166.38,166.37,104.18904762]
[1752504417469,0.06,166.38,166.37,94.0681485]
[1752504417658,0.06,166.38,166.37,105.71634762]
[1752504419666,0.06,166.38,166.37,105.71015773]
[1752504420057,0.06,166.38,166.37,161.0456417]
[1752504420367,0.1,166.41,166.4,42.78468397]
[1752504420569,0.1,166.44,166.4,57.70026085]
[1752504420869,0.1,166.44,166.43,36.12089912]
[1752504421168,0.1,166.44,166.43,14.58285773]
[1752504421759,0.1,166.44,166.43,4.46195861]
[1752504421946,0.1,166.44,166.37,7.5981]
[1752504422147,0.1,166.44,166.42,10.12089912]
[1752504422360,0.1,166.44,166.43,4.45652898]
[1752504422773,0.1,166.44,166.43,14.5774281]
[1752504423249,6.10817111,166.44,166.43,4.45652898]
[1752504423451,16.22907023,166.44,166.39,10.12089912]
[1752504423646,16.22907023,166.44,166.4,4.4537835]
[1752504423851,0.1,166.44,166.41,4.4537835]
[1752504424086,6.10818866,166.44,166.42,4.4537835]
[1752504424264,6.10818866,166.44,166.4,10.12089912]
[1752504424571,6.10818866,166.44,166.41,4.45252721]
[1752504424758,6.10818866,166.44,166.4,10.12089912]
[1752504424948,6.10818866,166.44,166.41,4.45252651]
[1752504425142,6.10818866,166.44,166.4,10.12089912]
[1752504425346,10.87196563,166.43,166.41,4.4517572]
[1752504425566,10.87196563,166.43,166.38,10.12089912]
[1752504425876,10.87196563,166.43,166.39,4.45205393]
[1752504426055,0.1,166.44,166.4,14.57295305]
[1752504426259,0.1,166.44,166.41,4.45191215]
[1752504426471,16.98015596,166.44,166.39,10.12089912]
[1752504426674,0.85102138,166.44,166.4,4.45191146]
[1752504426980,0.85102138,166.44,166.37,7.5981]
[1752504426981,0.1,166.44,166.43,10.12089912]
[1752504427151,0.1,166.44,166.43,14.57281058]
[1752504427952,0.1,166.44,166.43,4.45191146]
[1752504428470,0.1,166.44,166.43,14.57281058]
[1752504428882,0.1,166.44,166.43,4.45191146]
[1752504429051,10.22089912,166.44,166.43,4.45191146]
[1752504429252,10.22089912,166.44,166.38,10.12089912]
[1752504429575,0.1,166.44,166.39,14.57038953]
[1752504429762,0.1,166.44,166.4,4.44949041]
[1752504429965,0.1,166.44,166.41,4.44949041]
[1752504430278,0.75106651,166.43,166.37,33.5981]
[1752504430471,10.87196563,166.43,166.37,33.5981]
[1752504430802,10.87196563,166.43,166.38,10.12089912]
[1752504431153,10.87196563,166.43,166.41,0.03]
[1752504431351,10.12089912,166.43,166.41,0.03]
[1752504431651,0.1,166.44,166.41,0.03]
[1752504431848,0.85102138,166.44,166.41,0.03]
[1752504432280,0.1,166.44,166.41,0.03]
[1752504432462,0.1,166.44,166.41,10.15089912]
[1752504433087,0.1,166.44,166.41,0.03]
[1752504433969,0.1,166.44,166.42,10.12089912]
[1752504434167,0.1,166.44,166.41,0.03]
[1752504434696,0.1,166.44,166.42,10.12089912]
[1752504434877,0.1,166.44,166.43,10.12089912]
[1752504436691,0.1,166.44,166.41,89.63]
[1752504436890,0.1,166.44,166.41,99.75089912]
[1752504437677,0.1,166.44,166.41,89.63]
[1752504437893,10.12089912,166.43,166.41,0.03]
[1752504438204,16.98015228,166.44,166.41,0.03]
[1752504438796,10.9719205,166.44,166.41,0.03]
[1752504439104,10.12089912,166.42,166.41,0.03]
[1752504439980,10.87201076,166.42,166.41,0.03]
[1752504440674,0.75111164,166.42,166.41,0.03]
[1752504441273,10.87201076,166.42,166.41,0.03]
[1752504441482,0.75111164,166.42,166.41,0.03]
[1752504441684,0.75106651,166.43,166.41,0.03]
[1752504442201,10.12089912,166.42,166.41,0.03]
[1752504443678,16.88058879,166.43,166.41,0.03]
[1752504443900,10.12089912,166.42,166.41,0.03]
[1752504444921,0.75106651,166.43,166.41,0.03]
[1752504445086,10.9719205,166.44,166.41,0.03]
[1752504445588,0.85102138,166.44,166.41,0.03]
[1752504445991,6.85920875,166.44,166.41,0.03]
[1752504446386,0.85102138,166.44,166.41,0.03]
[1752504448207,0.1,166.44,166.41,10.15089912]
[1752504448395,0.1,166.44,166.43,10.12089912]
[1752504448705,0.1,166.44,166.41,6.1501]
[1752504448884,0.1,166.44,166.41,16.27099912]
[1752504449288,0.85102138,166.44,166.41,6.1501]
[1752504449492,0.85102138,166.44,166.41,0.03]
[1752504449899,16.98012054,166.44,166.41,0.03]
[1752504450290,10.12089912,166.43,166.41,0.03]
[1752504450484,0.75111164,166.42,166.41,0.03]
[1752504450693,43.29201076,166.42,166.41,0.03]
[1752504451809,49.30090392,166.42,166.41,0.03]
[1752504452184,43.29201076,166.42,166.41,0.03]
[1752504452709,39.1800048,166.42,166.41,0.03]
[1752504452886,49.30090392,166.42,166.41,0.03]
[1752504453088,66.08558789,166.42,166.41,0.03]
[1752504455787,70.96232951,166.42,166.41,0.03]
[1752504458198,60.84143039,166.42,166.41,0.03]
[1752504458408,16.78468397,166.41,166.34,0.03]
[1752504458611,10.12089912,166.35,166.34,0.03]
[1752504458915,42.54089912,166.35,166.34,0.03]
[1752504459221,59.32558309,166.35,166.34,0.03]
[1752504459708,16.78468397,166.34,166.25,0.03]
[1752504459892,10.12089912,166.27,166.25,0.03]
[1752504460089,43.29273359,166.26,166.25,0.03]
[1752504460292,0.75183447,166.26,166.25,0.03]
[1752504460513,40.05517599,166.37,166.25,0.03]
[1752504460514,32.42,166.29,166.25,10.15089912]
[1752504460717,32.42,166.29,166.25,0.03]
[1752504460892,0.75174404,166.28,166.25,10.15089912]
[1752504461217,0.75174404,166.28,166.25,0.03]
[1752504461419,42.54089912,166.27,166.25,0.03]
[1752504461618,10.87273359,166.26,166.25,0.03]
[1752504462485,33.17178925,166.27,166.25,0.03]
[1752504462690,0.75178925,166.27,166.25,10.15089912]
[1752504462910,32.42,166.28,166.25,10.15089912]
[1752504463114,0.75178925,166.27,166.25,0.03]
[1752504463920,42.56089912,166.26,166.25,0.03]
[1752504464093,33.19183447,166.26,166.25,0.03]
[1752504464587,49.32740939,166.26,166.25,0.03]
[1752504464792,43.31273359,166.26,166.25,0.03]
[1752504465188,33.19183447,166.26,166.25,0.03]
[1752504465410,32.44,166.27,166.25,10.15089912]
[1752504465793,32.44,166.27,166.25,0.03]
[1752504465991,32.44,166.27,166.26,10.12089912]
[1752504466192,10.12089912,166.31,166.26,10.12089912]
[1752504466390,10.12089912,166.31,166.25,0.03]
[1752504466391,32.44,166.29,166.25,0.03]
[1752504466624,32.44,166.29,166.25,10.15089912]
[1752504466811,0.75174404,166.28,166.25,0.03]
[1752504467003,0.75174404,166.28,166.25,10.15089912]
[1752504467216,0.75174404,166.28,166.25,0.03]
[1752504467923,10.87264316,166.28,166.25,0.03]
[1752504468494,0.75174404,166.28,166.25,0.03]
[1752504468810,33.19169883,166.29,166.27,10.12089912]
[1752504469222,0.75160844,166.31,166.28,10.12089912]
[1752504469412,33.19160844,166.31,166.29,10.12089912]
[1752504469608,33.19160844,166.31,166.28,16.77959912]
[1752504470118,33.19160844,166.31,166.29,10.12089912]
[1752504470320,0.75151806,166.33,166.3,10.12089912]
[1752504470524,32.44,166.35,166.32,10.12089912]
[1752504470698,0.75138254,166.36,166.34,10.12089912]
[1752504470699,32.44,166.36,166.34,10.12089912]
[1752504471300,32.44,166.36,166.35,10.12089912]
[1752504471913,33.19129222,166.38,166.35,10.12089912]
[1752504472119,32.44,166.38,166.37,10.12089912]
[1752504472315,33.19120192,166.4,166.37,10.12089912]
[1752504472811,33.19120192,166.4,166.36,10.12089912]
[1752504473021,33.19120192,166.4,166.37,10.12089912]
[1752504473229,33.19120192,166.4,166.36,6.1518]
[1752504473425,33.19120192,166.4,166.36,1.295653]
[1752504473636,32.44,166.4,166.38,10.12089912]
[1752504473824,0.75111164,166.42,166.39,10.12089912]
[1752504474029,0.85102138,166.44,166.41,10.12089912]
[1752504474331,0.85102138,166.44,166.42,10.12089912]
[1752504474518,0.85102138,166.44,166.43,10.12089912]
[1752504474721,0.85102138,166.44,166.42,10.12089912]
[1752504474920,0.85102138,166.44,166.41,10.12089912]
[1752504476013,0.85102138,166.44,166.38,1.6591]
[1752504476218,0.85102138,166.44,166.4,10.12089912]
[1752504476423,0.85102138,166.44,166.41,10.12089912]
[1752504476610,0.85102138,166.44,166.4,10.12089912]
[1752504477307,10.9719205,166.44,166.39,10.12089912]
[1752504478131,0.85102138,166.44,166.38,1.6591]
[1752504478340,0.85102138,166.44,166.4,10.12089912]
[1752504478521,0.85102138,166.44,166.41,10.12089912]
[1752504479229,0.85102138,166.44,166.38,1.6591]
[1752504479413,10.12089912,166.41,166.38,1.6591]
[1752504479610,0.75120192,166.4,166.37,0.03]
[1752504479814,10.87210104,166.4,166.37,0.03]
[1752504480329,0.75120192,166.4,166.37,0.03]
[1752504480531,32.46,166.43,166.38,10.12089912]
[1752504480756,0.75111164,166.42,166.38,10.12089912]
[1752504480916,10.87201076,166.42,166.37,0.03]
[1752504481117,10.87201076,166.42,166.37,10.15089912]
[1752504481622,10.87201076,166.42,166.37,0.03]
[1752504481816,33.21106651,166.43,166.37,0.03]
[1752504482121,33.21106651,166.43,166.4,10.12089912]
[1752504482424,33.21106651,166.43,166.39,10.12089912]
[1752504482937,0.1,166.44,166.42,10.12089912]
[1752504483144,0.1,166.44,166.43,10.12089912]
[1752504484942,0.1,166.44,166.4,26.0]
[1752504485118,0.1,166.44,166.43,10.12089912]
[1752504485318,0.1,166.44,166.4,26.0]
[1752504485544,0.1,166.44,166.42,10.12089912]
[1752504485849,0.1,166.44,166.4,26.0]
[1752504486049,0.1,166.44,166.41,10.12089912]
[1752504486245,0.1,166.44,166.42,10.12089912]
[1752504486621,0.85102138,166.44,166.4,10.12089912]
[1752504486850,0.85102138,166.44,166.41,10.12089912]
[1752504487243,10.9719205,166.44,166.39,10.12089912]
[1752504487450,0.85102138,166.44,166.4,10.12089912]
[1752504488454,0.85102138,166.44,166.41,10.12089912]
[1752504488650,0.1,166.44,166.43,10.12089912]
[1752504490135,0.1,166.44,166.37,89.6]
[1752504490334,17.07348397,166.37,166.24,0.2]
[1752504490539,10.12089912,166.26,166.24,0.2]
[1752504490838,10.12089912,166.26,166.18,0.03]
[1752504490839,16.78468397,166.23,166.18,0.03]
[1752504491045,16.78468397,166.2,166.18,0.03]
[1752504491231,43.75305027,166.19,166.18,0.03]
[1752504491649,0.75215115,166.19,166.18,0.03]
[1752504491847,10.12089912,166.19,166.18,0.03]
[1752504492664,16.88963722,166.21,166.18,0.03]
[1752504492834,10.12089912,166.19,166.18,0.03]
[1752504493143,59.76558309,166.19,166.18,0.03]
[1752504493349,16.78468397,166.18,166.1,0.03]
[1752504493563,10.12089912,166.11,166.1,0.03]
[1752504494661,33.67233222,166.15,166.1,0.03]
[1752504494962,10.12089912,166.11,166.1,0.03]
[1752504496555,33.67233222,166.15,166.1,0.03]
[1752504497035,15.49771209,166.13,166.1,0.03]
[1752504497231,0.75233222,166.15,166.1,0.03]
[1752504497436,15.49771209,166.14,166.1,0.03]
[1752504498073,49.1099085,166.18,166.12,15.49771209]
[1752504498241,16.2499085,166.18,166.12,15.49771209]
[1752504498563,15.49771209,166.19,166.13,15.49771209]
[1752504498867,0.75219641,166.18,166.14,15.49771209]
[1752504499073,15.49771209,166.21,166.15,15.49771209]
[1752504499278,0.75210589,166.2,166.16,15.49771209]
[1752504499436,0.75210589,166.2,166.15,15.49771209]
[1752504499641,16.24981798,166.2,166.15,15.49771209]
[1752504500161,16.24972749,166.22,166.12,26.0]
[1752504500365,16.24972749,166.22,166.17,15.49771209]
[1752504500366,0.7520154,166.22,166.17,15.49771209]
[1752504501359,16.24972749,166.22,166.17,15.49771209]
[1752504501878,32.84,166.23,166.18,15.49771209]
[1752504502180,16.24972749,166.22,166.17,15.49771209]
[1752504502767,15.49771209,166.2,166.14,15.49771209]
[1752504503082,0.75215115,166.19,166.14,15.49771209]
[1752504503277,16.24986324,166.19,166.14,15.49771209]
[1752504503463,0.75215115,166.19,166.14,15.49771209]
[1752504504456,0.04,166.21,166.18,15.49771209]
[1752504504755,16.28977273,166.21,166.15,0.71]
[1752504504971,15.49771209,166.19,166.15,0.71]
[1752504505184,0.75219641,166.18,166.15,0.71]
[1752504505383,0.75183447,166.26,166.17,15.49771209]
[1752504505562,15.49771209,166.24,166.18,15.49771209]
[1752504505903,0.04,166.21,166.16,25.06698397]
[1752504506281,0.75183447,166.26,166.18,0.71]
[1752504507088,0.04,166.25,166.21,15.49771209]
[1752504507257,0.75187969,166.25,166.2,15.49771209]
[1752504507458,16.24959178,166.25,166.2,15.49771209]
[1752504508014,16.24959178,166.25,166.21,0.71]
[1752504508292,0.75187969,166.25,166.21,16.20771209]
[1752504508474,0.75187969,166.25,166.21,15.49771209]
[1752504508677,0.04,166.24,166.2,0.71]
[1752504508881,15.53771209,166.24,166.2,0.71]
[1752504509200,0.75197016,166.23,166.2,0.71]
[1752504509566,15.49771209,166.22,166.16,23.78001209]
[1752504509774,0.75206064,166.21,166.18,0.71]
[1752504509993,0.79206064,166.21,166.16,23.78001209]
[1752504510290,0.75206064,166.21,166.18,0.71]
[1752504510675,0.7520154,166.22,166.18,0.71]
[1752504510892,0.7520154,166.22,166.18,16.20771209]
[1752504511081,15.49771209,166.23,166.2,15.49771209]
[1752504511082,0.75197016,166.23,166.2,15.49771209]
[1752504511288,0.75197016,166.23,166.2,0.71]
[1752504511511,0.79197016,166.23,166.19,15.49771209]
[1752504511676,0.79197016,166.23,166.19,0.71]
[1752504512071,0.75197016,166.23,166.2,0.71]
[1752504512578,0.75197016,166.23,166.21,0.71]
[1752504513100,0.75197016,166.23,166.2,0.71]
[1752504514276,0.75197016,166.23,166.21,0.71]
[1752504514480,0.7520154,166.22,166.2,0.71]
[1752504514793,16.28963701,166.24,166.2,0.71]
[1752504516000,15.49771209,166.22,166.17,0.71]
[1752504516182,15.49771209,166.19,166.17,0.71]
[1752504516491,15.49771209,166.21,166.18,0.71]
[1752504516697,0.75210589,166.2,166.18,0.71]
[1752504518069,0.04,166.22,166.18,10.83989958]
[1752504518070,0.7520154,166.22,166.18,10.83989958]
[1752504518271,0.7520154,166.22,166.19,10.83989958]
[1752504518488,0.04,166.21,166.18,10.12989958]
[1752504519670,0.7520154,166.22,166.19,0.71]
[1752504519868,0.06,166.2,166.19,0.71]
[1752504520295,0.06,166.2,166.14,89.6]
[1752504520501,0.04,166.19,166.1,0.03]
[1752504520795,10.12989958,166.13,166.1,0.03]
[1752504520970,10.16989958,166.13,166.1,0.03]
[1752504521172,10.12989958,166.11,166.1,0.03]
[1752504521795,16.19000673,166.11,166.1,0.03]
[1752504522190,16.94252012,166.11,166.1,0.03]
[1752504522979,33.72720409,166.11,166.1,0.03]
[1752504523395,33.68720409,166.11,166.1,0.03]
[1752504523788,33.68720409,166.11,166.1,0.74]
[1752504524289,43.52241297,166.11,166.1,0.03]
[1752504524678,49.54252012,166.11,166.1,0.74]
[1752504524875,43.52241297,166.11,166.1,0.74]
[1752504525507,76.49710367,166.11,166.1,0.03]
[1752504525677,66.36720409,166.11,166.1,0.03]
[1752504525872,66.32720409,166.11,166.1,0.03]
[1752504526176,33.68720409,166.11,166.1,0.03]
[1752504526382,66.30720409,166.11,166.1,0.03]
[1752504526888,56.17730451,166.11,166.1,0.74]
[1752504527200,66.34720409,166.11,166.1,0.03]
[1752504528604,66.30720409,166.11,166.1,0.03]
[1752504528776,66.30720409,166.11,166.1,0.74]
[1752504529802,10.88241297,166.11,166.1,0.74]
[1752504530005,48.73000673,166.11,166.1,0.74]
[1752504530516,65.5546907,166.11,166.1,0.03]
[1752504530701,65.5546907,166.11,166.08,0.2]
[1752504530702,75.68459028,166.11,166.08,0.2]
[1752504530923,26.91458355,166.09,166.08,0.16]
[1752504531486,32.93541562,166.09,166.08,0.16]
[1752504532995,65.49541562,166.09,166.08,0.16]
[1752504535129,65.45541562,166.09,166.08,0.16]
[1752504535620,65.45541562,166.09,166.05,0.0444]
[1752504535621,80.50749581,166.09,166.05,0.0444]
[1752504535971,26.91458355,166.06,166.05,0.0444]
[1752504536091,59.41458355,166.06,166.05,0.0444]
[1752504536687,49.28468397,166.06,166.05,0.7244]
[1752504536928,59.41458355,166.06,166.05,0.7244]
[1752504537305,65.43650333,166.06,166.05,0.7244]
[1752504537513,6.02185801,166.07,166.05,0.7244]
[1752504537701,43.38263955,166.06,166.05,0.7244]
[1752504538214,43.38263955,166.06,166.05,0.0444]
[1752504538525,60.16732352,166.06,166.05,0.0444]
[1752504538893,60.18732352,166.06,166.05,0.0444]
[1752504539508,60.18732352,166.06,166.05,1e-08]
[1752504539509,66.2092433,166.06,166.05,1e-08]
[1752504540521,33.6892433,166.06,166.05,1e-08]
[1752504540834,33.27273997,166.06,166.05,0.68000001]
[1752504541126,0.75273997,166.06,166.05,0.68000001]
[1752504541335,32.52,166.06,166.05,0.71000001]
[1752504541533,43.40263955,166.06,166.05,0.71000001]
[1752504541731,33.27273997,166.06,166.05,0.71000001]
[1752504541909,33.27273997,166.06,166.05,0.03000001]
[1752504542110,33.27273997,166.06,166.05,0.71000001]
[1752504542316,33.27273997,166.06,166.05,0.03000001]
[1752504542531,43.40263955,166.06,166.05,0.03000001]
[1752504542742,49.42455933,166.06,166.05,0.03000001]
[1752504542944,0.75273997,166.06,166.05,0.03000001]
[1752504543124,32.52,166.06,166.05,0.03000001]
[1752504543635,48.67181936,166.06,166.05,0.03000001]
[1752504544212,49.42455933,166.06,166.05,0.03000001]
[1752504544626,66.2092433,166.06,166.05,0.03000001]
[1752504545530,66.2092433,166.06,166.05,0.71000001]
[1752504545531,49.42455933,166.06,166.05,0.71000001]
[1752504545834,49.42455933,166.06,166.05,0.03000001]
[1752504546632,16.90455933,166.06,166.05,0.03000001]
[1752504546835,65.45650333,166.06,166.05,0.03000001]
[1752504547026,32.93650333,166.06,166.05,0.03000001]